fUST/lending_fUST_20251230
["ID","MTS","AMOUNT","RATE_DAILY","PERIOD"]
[400047117,1767051050260,-501.1,0.00025753,2]
[400047118,1767051050269,-878.29,0.00025753,2]
[400047119,1767051050278,-994.31,0.00025753,2]
[400047120,1767051050287,-500.0,0.00025753,2]
[400047121,1767051050296,-350.0,0.00025753,2]
[400047122,1767051050305,-423.21610016,0.00025754,69]
[400047123,1767051050316,-423.21610016,0.00025825,72]
[400047124,1767051050329,-423.21610016,0.00025896,76]
[400047125,1767051050338,-228.84514455,0.00025947,79]
[400047126,1767051050348,-423.21610016,0.00025967,80]
[400047127,1767051050358,-39739.93699728,0.00026,10]
[400047128,1767051050368,-1041.66666667,0.00026,10]
[400047129,1767051050378,-529.2118122,0.00026,2]
[400047130,1767051050388,-19900.0,0.00026,2]
[400047131,1767051050397,-1041.66666667,0.00026,7]
[400047132,1767051050407,-161.0,0.00026,5]
[400047133,1767051050416,-212.18,0.00026027,2]
[400047134,1767051050425,-893.04,0.00026027,2]
[400047135,1767051050434,-502.9,0.00026027,2]
[400047136,1767051050443,-4821.6,0.00026027,2]
[400047137,1767051050453,-680.8,0.00026027,2]
[400047138,1767051050462,-501.1,0.00026027,2]
[400047139,1767051050471,-878.29,0.00026027,2]
[400047140,1767051050480,-994.31,0.00026027,2]
[400047141,1767051050490,-500.0,0.00026027,2]
[400047142,1767051050499,-423.21610016,0.00026038,83]
[400047143,1767051050508,-423.21610016,0.00026109,87]
[400047144,1767051050518,-194.43438945,0.0002616,2]
[400047145,1767051050529,-423.21610016,0.00026181,91]
[400047146,1767051050539,-15277.58765547,0.00026218,2]
[400047147,1767051050550,-228.84514455,0.00026241,94]
[400047148,1767051050559,-423.21610016,0.00026252,95]
[400047149,1767051050569,-893.04,0.00026301,2]
[400047150,1767051050579,-502.9,0.00026301,2]
[400047151,1767051050590,-4821.6,0.00026301,2]
[400047152,1767051050600,-680.8,0.00026301,2]
[400047153,1767051050610,-501.1,0.00026301,2]
[400047154,1767051050619,-878.29,0.00026301,2]
[400047155,1767051050628,-994.31,0.00026301,2]
[400047156,1767051050637,-500.0,0.00026301,2]
[400047157,1767051050647,-450.0,0.00026301,2]
[400047158,1767051050658,-423.21610016,0.00026323,98]
[400047159,1767051050668,-423.21610016,0.00026394,102]
[400047160,1767051050678,-321.5,0.00026425,2]
[400047161,1767051050689,-423.21610016,0.00026465,106]
[400047162,1767051050698,-423.21610016,0.00026536,110]
[400047163,1767051050706,-893.04,0.00026575,2]
[400047164,1767051050715,-502.9,0.00026575,2]
[400047165,1767051050724,-4821.6,0.00026575,2]
[400047166,1767051050733,-680.8,0.00026575,2]
[400047167,1767051050742,-501.1,0.00026575,2]
[400047168,1767051050751,-878.29,0.00026575,2]
[400047169,1767051050761,-994.31,0.00026575,2]
[400047170,1767051050771,-500.0,0.00026575,2]
[400047171,1767051050780,-160.82,0.000266,2]
[400047172,1767051050789,-2000.0,0.00026667,7]
[400047173,1767051050798,-893.04,0.00026849,2]
[400047174,1767051050807,-502.9,0.00026849,2]
[400047175,1767051050816,-4821.6,0.00026849,2]
[400047176,1767051050825,-680.8,0.00026849,2]
[400047177,1767051050834,-501.1,0.00026849,2]
[400047178,1767051050843,-878.29,0.00026849,2]
[400047179,1767051050851,-994.31,0.00026849,2]
[400047180,1767051050860,-500.0,0.00026849,2]
[400047181,1767051050869,-550.0,0.00026849,2]
[400047182,1767051050878,-12494.59,0.00027,2]
[400047183,1767051050887,-1024.67436269,0.00027,2]
[400047184,1767051050896,-893.04,0.00027123,2]
[400047185,1767051050905,-502.9,0.00027123,2]
[400047186,1767051050914,-4821.6,0.00027123,2]
[400047187,1767051050923,-680.8,0.00027123,2]
[400047188,1767051050932,-501.1,0.00027123,2]
[400047189,1767051050940,-878.29,0.00027123,2]
[400047190,1767051050949,-994.31,0.00027123,2]
[400047191,1767051050958,-500.0,0.00027123,2]
[400047192,1767051050966,-1207.08,0.000272,7]
[400047193,1767051050975,-156.97,0.000272,7]
[400047194,1767051050984,-160.2,0.000272,7]
[400047195,1767051050993,-3790.93147808,0.00027285,2]
[400047196,1767051051002,-416.0,0.00027328,2]
[400047197,1767051051011,-12667.999999,0.0002739,2]
[400047198,1767051051020,-568.69719342,0.0002739,7]
[400047199,1767051051029,-893.04,0.00027397,2]
[400047200,1767051051038,-502.9,0.00027397,2]
[400047201,1767051051048,-4821.6,0.00027397,2]
[400047202,1767051051059,-680.8,0.00027397,2]
[400047203,1767051051070,-501.1,0.00027397,2]
[400047204,1767051051081,-878.29,0.00027397,2]
[400047205,1767051051092,-994.31,0.00027397,2]
[400047206,1767051051101,-199.19952446,0.00027397,2]
[400047207,1767051051110,-223.7001258,0.00027397,2]
[400047208,1767051051119,-500.0,0.00027397,2]
[400047209,1767051051130,-650.0,0.00027397,5]
[400047210,1767051051139,-300.0,0.00027397,2]
[400047211,1767051051148,-300.0,0.00027397,2]
[400047212,1767051051157,-300.0,0.00027397,2]
[400047213,1767051051166,-300.0,0.00027397,2]
[400047214,1767051051175,-300.0,0.00027397,2]
[400047215,1767051051184,-300.0,0.00027397,2]
[400047216,1767051051193,-300.0,0.00027397,2]
[400047217,1767051051202,-300.0,0.00027397,2]
[400047218,1767051051211,-300.0,0.00027397,2]
[400047219,1767051051220,-151.0,0.00027397,7]
[400047220,1767051051229,-151.0,0.00027397,7]
[400047221,1767051051321,-151.0,0.00027397,7]
[400047222,1767051051330,-151.0,0.00027397,7]
[400047223,1767051051339,-151.0,0.00027397,7]
[400047224,1767051051348,-157.04098773,0.00027397,5]
[400047225,1767051051357,-500.0,0.00027397,5]
[400047226,1767051051367,-1181.68932168,0.00027469,2]
[400047227,1767051051376,-339.0,0.00027485,2]
[400047228,1767051051385,-45902.02051304,0.000275,2]
[400047229,1767051051394,-151.0,0.000275,7]
[400047230,1767051051403,-151.0,0.000275,7]
[400047231,1767051051412,-2966.412199,0.000275,7]
[400047232,1767051051422,-2966.412199,0.000275,7]
[400047233,1767051051431,-2966.412199,0.000275,7]
[400047234,1767051051440,-2966.412199,0.000275,7]
[400047235,1767051051449,-151.0,0.000275,7]
[400047236,1767051051458,-151.0,0.000275,7]
[400047237,1767051051467,-500.0,0.00027508,2]
[400047238,1767051051477,-151.0,0.00027508,2]
[400047239,1767051051486,-151.0,0.00027508,2]
[400047240,1767051051495,-2398.4119403,0.00027508,2]
[400047241,1767051051504,-183.83210402,0.00027508,2]
[400047242,1767051051513,-496.47127164,0.00027508,2]
[400047243,1767051051523,-500.0,0.00027508,2]
[400047244,1767051051532,-500.0,0.00027508,2]
[400047245,1767051051541,-500.0,0.00027508,2]
[400047246,1767051051551,-500.0,0.00027508,2]
[400047247,1767051051560,-500.0,0.00027508,2]
[400047248,1767051051568,-500.0,0.00027508,2]
[400047249,1767051051578,-500.0,0.00027508,2]
[400047250,1767051051586,-500.0,0.00027508,2]
[400047251,1767051051606,-500.0,0.00027508,2]
[400047252,1767051051616,-500.0,0.00027508,2]
[400047253,1767051051626,-500.0,0.00027508,2]
[400047254,1767051051635,-500.0,0.00027508,2]
[400047255,1767051051645,-500.0,0.00027508,2]
[400047256,1767051051654,-500.0,0.00027508,2]
[400047257,1767051051663,-321.5,0.0002752,2]
[400047258,1767051051672,-15277.58765547,0.00027634,2]
[400047259,1767051051682,-893.04,0.00027671,2]
[400047260,1767051051692,-502.9,0.00027671,2]
[400047261,1767051051701,-4821.6,0.00027671,2]
[400047262,1767051051711,-680.8,0.00027671,2]
[400047263,1767051051721,-501.1,0.00027671,2]
[400047264,1767051051730,-878.29,0.00027671,2]
[400047265,1767051051739,-994.31,0.00027671,2]
[400047266,1767051051749,-462.88,0.00027671,2]
[400047267,1767051051758,-1000.0,0.00027688,30]
[400047268,1767051051768,-1000.0,0.00027688,30]
[400047269,1767051051777,-2002.32,0.000277,14]
[400047270,1767051051787,-5000.0,0.00027761,2]
[400047271,1767051051796,-1000.0,0.00027777,5]
[400047272,1767051051805,-164.0,0.0002789,26]
[400047273,1767051051815,-2000.0,0.00027903,7]
[400047274,1767051051824,-2000.0,0.00027912,7]
[400047275,1767051051834,-2000.0,0.0002792,7]
[400047276,1767051051843,-382.63332871,0.00027925,7]
[400047277,1767051051852,-2000.0,0.00027929,7]
[400047278,1767051051861,-2000.0,0.00027938,7]
[400047279,1767051051871,-893.04,0.00027945,2]
[400047280,1767051051881,-502.9,0.00027945,2]
[400047281,1767051051893,-4821.6,0.00027945,2]
[400047282,1767051051903,-680.8,0.00027945,2]
[400047283,1767051051915,-501.1,0.00027945,2]
[400047284,1767051051926,-878.29,0.00027945,2]
[400047285,1767051051937,-994.31,0.00027945,2]
[400047286,1767051051947,-1000.0,0.00027945,5]
[400047287,1767051051957,-750.0,0.00027945,5]
[400047288,1767051051966,-250.0,0.00027945,5]
[400047289,1767051051976,-250.0,0.00027945,5]
[400047290,1767051051985,-250.0,0.00028,10]
[400047291,1767051051995,-15306.86273873,0.00028,2]
[400047292,1767051052004,-519.61844373,0.00028,2]
[400047293,1767051052015,-2003.22501658,0.00028,2]
[400047294,1767051052026,-1017.0,0.00028,2]
[400047295,1767051052036,-2487.15318209,0.00028056,2]
[400047296,1767051052047,-514.84070869,0.00028056,2]
[400047297,1767051052056,-1183.0,0.0002807,2]
[400047298,1767051052067,-301.398599,0.000281,10]
[400047299,1767051052077,-893.06635343,0.00028219,2]
[400047300,1767051052091,-502.91652745,0.00028219,2]
[400047301,1767051052101,-4821.82605104,0.00028219,2]
[400047302,1767051052112,-680.91387103,0.00028219,2]
[400047303,1767051052121,-501.21245629,0.00028219,2]
[400047304,1767051052130,-878.42472606,0.00028219,2]
[400047305,1767051052140,-994.35737078,0.00028219,2]
[400047306,1767051052149,-1184.0,0.00028239,7]
[400047307,1767051052158,-1183.0,0.00028247,2]
[400047308,1767051052168,-2000.0,0.00028333,7]
[400047309,1767051052177,-1183.0,0.00028368,2]
[400047310,1767051052186,-1184.0,0.00028421,2]
[400047311,1767051052195,-850.0,0.00028493,5]
[400047312,1767051052205,-1340.79710495,0.00028493,5]
[400047313,1767051052215,-350.0,0.00028493,5]
[400047314,1767051052224,-350.0,0.00028493,5]
[400047315,1767051052233,-31327.50318541,0.000285,7]
[400047316,1767051052242,-229692.19415498,0.000285,7]
[400047317,1767051052251,-154.49216668,0.00028533,5]
[400047318,1767051052261,-156.78044487,0.00028533,5]
[400047319,1767051052270,-1184.0,0.00028538,2]
[400047320,1767051052279,-2477.790854,0.000286,4]
[400047321,1767051052288,-2579.17784983,0.00028604,2]
[400047322,1767051052298,-533.88981491,0.00028604,2]
[400047323,1767051052307,-321.5,0.00028616,3]
[400047324,1767051052318,-1184.0,0.00028641,2]
[400047325,1767051052328,-47414.84,0.000287,3]
[400047326,1767051052338,-3250.52834586,0.0002876,2]
[400047327,1767051052347,-19127.20405076,0.0002876,2]
[400047328,1767051052357,-500.0,0.00028767,7]
[400047329,1767051052367,-500.0,0.00028767,7]
[400047330,1767051052376,-500.0,0.00028767,7]
[400047331,1767051052385,-500.0,0.00028767,7]
[400047332,1767051052394,-500.0,0.00028767,7]
[400047333,1767051052403,-500.0,0.00028767,7]
[400047334,1767051052413,-500.0,0.00028767,7]
[400047335,1767051052423,-500.0,0.00028767,7]
[400047336,1767051052435,-500.0,0.00028767,7]
[400047337,1767051052445,-500.0,0.00028767,7]
[400047338,1767051052454,-500.0,0.00028767,7]
[400047339,1767051052463,-500.0,0.00028767,7]
[400047340,1767051052472,-500.0,0.00028767,7]
[400047341,1767051052482,-494.49773286,0.00028767,7]
[400047342,1767051052492,-1183.0,0.00028769,7]
[400047343,1767051052501,-5000.0,0.00028797,10]
[400047344,1767051052510,-1207.08,0.000288,7]
[400047345,1767051052519,-94366.69615127,0.000288,3]
[400047346,1767051052680,-3385.62481471,0.000288,3]
[400047347,1767051052894,-3e-08,0.00025069,2]
[400047348,1767051053247,-500.0,0.0001393,2]
[400047349,1767051053256,-500.0,0.0001393,2]
[400047350,1767051053266,-500.0,0.0001393,2]
[400047351,1767051053276,-500.0,0.0001393,2]
[400047352,1767051053286,-500.0,0.0001393,2]
[400047353,1767051053296,-500.0,0.0001393,2]
[400047354,1767051053306,-500.0,0.0001393,2]
[400047355,1767051053319,-500.0,0.0001393,2]
[400047356,1767051053328,-499.99999997,0.00025069,2]
[400047357,1767051053338,-89.49754642,0.00025206,2]
[400047358,1767051053349,-410.50245358,0.00025206,2]
[400047359,1767051053359,-500.0,0.00025343,2]
[400047360,1767051053369,-500.0,0.00027508,2]
[400047361,1767051053379,-9742.13378642,0.000288,3]
[400047362,1767051146643,-480.10107358,0.00013273,2]
[400047363,1767051146664,-157.8114192,0.00013273,2]
[400047364,1767051150996,-173.31490018,0.00013273,2]
[400047365,1767051153104,-153.09268197,0.00013273,2]
[400047366,1767051251537,193.19,0.00013162,2]
[400047367,1767051266634,-178.41010881,0.00013326,2]
[400047368,1767051270439,-288.32652725,0.00013326,2]
[400047369,1767051270473,233.94,0.00013172,2]
[400047370,1767051272994,-172.878,0.00013326,2]
[400047371,1767051275250,-403.70845104,0.00013326,2]
[400047372,1767051331473,190.73,0.0001316,2]
[400047373,1767051411917,188.31,0.0001317,2]
[400047374,1767051436347,5000.0,0.00013172,2]
[400047375,1767051471482,772.214776,0.00012594,2]
[400047376,1767051479977,178.06,9.99e-05,2]
[400047377,1767051491637,189.73,0.00013168,2]
[400047378,1767051521728,-159.99,0.00013326,2]
[400047379,1767051572776,187.31,0.0001317,2]
[400047380,1767051656649,-179.75322194,0.00013175,2]
[400047381,1767051659554,-176.42180026,0.00013175,2]
[400047382,1767051662983,5000.0,0.00013172,2]
[400047383,1767051686415,5000.0,0.00013172,2]
[400047384,1767051710843,5000.0,0.00013172,2]
[400047385,1767051733986,5000.0,0.00013172,2]
[400047386,1767051734816,-293.31108413,0.00013186,2]
[400047387,1767051737967,-232.26633695,0.00013186,2]
[400047388,1767051746885,525.57,0.00012329,2]
[400047389,1767051747698,-137.70257892,0.00013186,2]
[400047390,1767051747722,-160.46518058,0.00013326,2]
[400047391,1767051757836,5000.0,0.00013172,2]
[400047392,1767051780793,5000.0,0.00013172,2]
[400047393,1767051804779,5000.0,0.00013172,2]
[400047394,1767051821640,-153.29131021,0.00013206,2]
[400047395,1767051824916,-233.41153124,0.00013206,2]
[400047396,1767051827019,-200.52,0.00013206,2]
[400047397,1767051828734,5000.0,0.00013172,2]
[400047398,1767051829145,386.7,0.00012329,2]
[400047399,1767051830964,-67.61715855,0.00013206,2]
[400047400,1767051830990,-175.81545205,0.00013326,2]
[400047401,1767051839632,443.95,0.00012329,2]
[400047402,1767051851675,5000.0,0.00013172,2]
[400047403,1767051875295,5000.0,0.00013172,2]
[400047404,1767051894866,118519.4306648,0.000287,120]
[400047405,1767051898346,5000.0,0.00013172,2]
[400047406,1767051921850,5000.0,0.00013172,2]
[400047407,1767051941649,-646.5,0.00013204,2]
[400047408,1767051941675,-272.71936737,0.00013326,2]
[400047409,1767051941699,-54.8641384,0.00013461,2]
[400047410,1767051952804,162.34,0.00012329,2]
[400047411,1767051953996,-315.30608388,0.00013326,2]
[400047412,1767051959046,-318.2538688,0.00013326,2]
[400047413,1767051963286,240.88,0.00012329,2]
[400047414,1767051973963,200.73,0.00012329,2]
[400047415,1767051975245,638.28,0.00013134,2]
[400047416,1767051984400,167.28,0.00012329,2]
[400047417,1767051995020,836.41,0.00012329,2]
[400047418,1767052056410,630.15,0.00013131,2]
[400047421,1767052092837,-500.0,0.00013273,2]
[400047422,1767052092860,-92.56098005,0.00013273,2]
[400047423,1767052136631,-225.23155453,0.00013273,2]
[400047424,1767052137735,622.13,0.0001313,2]
[400047425,1767052147311,5000.0,0.00013172,2]
[400047426,1767052170958,5000.0,0.00013172,2]
[400047427,1767052194367,5000.0,0.00013172,2]
[400047428,1767052211639,-182.20746542,0.00013273,2]
[400047429,1767052211662,-225.23155453,0.00013273,2]
[400047430,1767052214589,-261.12381645,0.00013273,2]
[400047431,1767052217982,5000.0,0.00013172,2]
[400047432,1767052218759,614.21,0.00013135,2]
[400047466,1767052232456,-121.64462902,0.00013273,2]
[400047468,1767052232466,-172.3749616,0.00013461,2]
[400047469,1767052232475,-300.0,0.00013489,2]
[400047471,1767052232484,-300.0,0.00013489,2]
[400047473,1767052232497,-300.0,0.00013489,2]
[400047475,1767052232506,-300.0,0.00013489,2]
[400047477,1767052232516,-166.05163483,0.00013489,2]
[400047479,1767052232528,-47.44143871,0.00013489,2]
[400047481,1767052232537,-500.0,0.00013489,2]
[400047483,1767052232546,-210.04436182,0.00013489,2]
[400047486,1767052232557,-218.78930056,0.00013489,2]
[400047488,1767052232567,-500.0,0.00013489,2]
[400047489,1767052232576,-500.0,0.00013489,2]
[400047491,1767052232587,-500.0,0.00013489,2]
[400047493,1767052232596,-500.0,0.00013489,2]
[400047495,1767052232606,-1200.0,0.0001349,2]
[400047497,1767052232615,-500.0,0.0001349,2]
[400047499,1767052232625,-11886.00069011,0.0001349,2]
[400047501,1767052232636,-38113.99930989,0.0001349,2]
[400047504,1767052232647,-6653.22446541,0.00013491,2]
[400047506,1767052232663,-619.84912104,0.00013491,2]
[400047638,1767052238594,-500.0,0.00013489,2]
[400047640,1767052238604,-500.0,0.00013489,2]
[400047642,1767052238614,-992726.92641355,0.00013491,2]
[400047643,1767052238624,-300.0,0.00013589,2]
[400047645,1767052238634,-500.0,0.00013698,2]
[400047646,1767052238644,-511.31418948,0.00013698,2]
[400047647,1767052238654,-627.95351682,0.00013698,2]
[400047648,1767052238664,-500.0,0.00013698,2]
[400047649,1767052238674,-500.0,0.00013698,2]
[400047650,1767052238684,-500.0,0.00013698,2]
[400047651,1767052238693,-500.0,0.00013698,2]
[400047652,1767052238704,-500.0,0.00013698,2]
[400047653,1767052238713,-500.0,0.00013698,2]
[400047654,1767052238723,-500.0,0.00013698,2]
[400047655,1767052238733,-623.26,0.00013698,2]
[400047656,1767052238742,-623.26,0.00013698,2]
[400047657,1767052238752,-623.26,0.00013698,2]
[400047658,1767052238766,-623.26,0.00013698,2]
[400047659,1767052238776,-623.26,0.00013698,2]
[400047660,1767052238785,-578.55078283,0.00013698,2]
[400047661,1767052238798,-500.0,0.00013698,2]
[400047662,1767052238807,-500.0,0.00013698,2]
[400047663,1767052238817,-500.0,0.00013698,2]
[400047664,1767052238827,-684.455079,0.00013699,2]
[400047665,1767052238837,-1000.0,0.00013699,2]
[400047666,1767052238847,-551.428007,0.00013699,2]
[400047667,1767052238857,-500.0,0.00013699,2]
[400047668,1767052238866,-500.0,0.00013699,2]
[400047669,1767052238876,-500.0,0.00013699,2]
[400047670,1767052238885,-500.0,0.00013699,2]
[400047671,1767052238896,-500.0,0.00013699,2]
[400047672,1767052238906,-500.0,0.00013699,2]
[400047673,1767052238916,-1228.43,0.0001376,2]
[400047674,1767052238926,-500.0,0.0001378,2]
[400047675,1767052238936,-623.26,0.0001378,2]
[400047676,1767052238945,-288.07975173,0.00013821,2]
[400047677,1767052238955,-300.0,0.0001387,2]
[400047678,1767052238965,-300.0,0.0001387,2]
[400047679,1767052238975,-300.0,0.0001387,2]
[400047680,1767052238985,-300.0,0.0001387,2]
[400047681,1767052238995,-300.0,0.0001387,2]
[400047682,1767052239005,-300.0,0.0001387,2]
[400047683,1767052239014,-300.0,0.0001387,2]
[400047684,1767052239024,-300.0,0.0001387,2]
[400047685,1767052239035,-300.0,0.0001387,2]
[400047686,1767052239044,-300.0,0.0001387,2]
[400047687,1767052239054,-300.0,0.0001387,2]
[400047688,1767052239064,-300.0,0.0001387,2]
[400047689,1767052239073,-300.0,0.0001387,2]
[400047690,1767052239083,-300.0,0.0001387,2]
[400047691,1767052239092,-300.0,0.0001387,2]
[400047692,1767052239102,-600.0,0.0001387,2]
[400047693,1767052239112,-6600.0,0.000139,2]
[400047694,1767052239121,-43552.6656258,0.00013906,2]
[400047695,1767052239131,-500.0,0.00013929,2]
[400047696,1767052239140,-623.26,0.00013929,2]
[400047697,1767052239150,-500.0,0.0001393,2]
[400047698,1767052239160,-500.0,0.0001393,2]
[400047699,1767052239170,-500.0,0.0001393,2]
[400047700,1767052239179,-500.0,0.0001393,2]
[400047701,1767052239189,-500.0,0.0001393,2]
[400047702,1767052239200,-500.0,0.0001393,2]
[400047703,1767052239210,-500.0,0.0001393,2]
[400047704,1767052239219,-500.0,0.0001393,2]
[400047705,1767052239229,-498.08,0.0001393,2]
[400047706,1767052239238,-623.26,0.0001393,2]
[400047707,1767052239247,-623.26,0.0001393,2]
[400047708,1767052239257,-623.26,0.0001393,2]
[400047709,1767052239267,-623.26,0.0001393,2]
[400047710,1767052239279,-623.26,0.0001393,2]
[400047711,1767052239288,-623.26,0.0001393,2]
[400047712,1767052239297,-623.26,0.0001393,2]
[400047713,1767052239307,-623.26,0.0001393,2]
[400047714,1767052239316,-623.26,0.0001393,2]
[400047715,1767052239325,-623.26,0.0001393,2]
[400047716,1767052239335,-623.26,0.0001393,2]
[400047717,1767052239344,-623.26,0.0001393,2]
[400047718,1767052239354,-623.26,0.0001393,2]
[400047719,1767052239363,-623.26,0.0001393,2]
[400047720,1767052239372,-623.26,0.0001393,2]
[400047721,1767052239382,-623.26,0.0001393,2]
[400047722,1767052239391,-623.4449749,0.0001393,2]
[400047723,1767052239399,-500.0,0.00014247,2]
[400047724,1767052239409,-400.0,0.00014247,2]
[400047725,1767052239418,-500.0,0.00014247,2]
[400047726,1767052239427,-1000.0,0.00014247,2]
[400047727,1767052239436,-1000.0,0.00014247,2]
[400047728,1767052239446,-1842.64,0.00014386,2]
[400047729,1767052239455,-420.0,0.00014786,2]
[400047730,1767052239465,-420.0,0.00014786,2]
[400047731,1767052239474,-1680.0,0.00014787,2]
[400047732,1767052239484,-1500.0,0.00014795,2]
[400047733,1767052239493,-1500.0,0.00014795,2]
[400047734,1767052239501,-377.0,0.00014948,2]
[400047735,1767052239511,-2456.85,0.00015011,2]
[400047736,1767052239521,-100000.0,0.00015028,2]
[400047737,1767052239531,-241.032427,0.00015068,2]
[400047738,1767052239541,-720.0,0.00015257,2]
[400047739,1767052239550,-238.47,0.00015267,2]
[400047740,1767052239559,-176.99,0.00015267,2]
[400047741,1767052239569,-177.0,0.00015299,2]
[400047742,1767052239579,-2000.0,0.00015342,2]
[400047743,1767052239588,-2000.0,0.00015342,2]
[400047744,1767052239597,-160.0,0.000155,2]
[400047745,1767052239607,-236.29060693,0.00015631,2]
[400047746,1767052239617,-236.29131603,0.00015632,2]
[400047747,1767052239626,-237.00042319,0.00015633,2]
[400047748,1767052239635,-946.10758729,0.00015636,2]
[400047749,1767052239644,-3071.07,0.00015637,2]
[400047750,1767052239654,-2500.0,0.0001589,2]
[400047751,1767052239663,-2500.0,0.0001589,2]
[400047752,1767052239672,-250.0,0.00016,2]
[400047753,1767052239682,-260.0,0.00016048,2]
[400047754,1767052239692,-587.0,0.00016207,2]
[400047755,1767052239701,-1324.0,0.00016208,2]
[400047756,1767052239711,-3685.28,0.00016262,2]
[400047757,1767052239720,-9717.9132559,0.00016322,2]
[400047758,1767052239729,-3000.0,0.00016438,2]
[400047759,1767052239738,-3000.0,0.00016438,2]
[400047760,1767052239747,-200.0,0.00016473,2]
[400047761,1767052239757,-360.0,0.00016596,2]
[400047762,1767052239766,-864.0,0.00016782,2]
[400047763,1767052239775,-2168.3595411,0.00016861,2]
[400047764,1767052239785,-4299.5,0.00016887,2]
[400047765,1767052239794,-3500.0,0.00016986,2]
[400047766,1767052239804,-3500.0,0.00016986,2]
[400047767,1767052239814,-250.0,0.00017,2]
[400047768,1767052239824,-796.8678,0.00017078,2]
[400047769,1767052239833,-460.0,0.00017144,2]
[400047770,1767052239842,-204.0,0.00017299,2]
[400047771,1767052239852,-4913.71,0.00017513,2]
[400047772,1767052239861,-4000.0,0.00017534,2]
[400047773,1767052239871,-4000.0,0.00017534,2]
[400047774,1767052239880,-250.0,0.00017537,2]
[400047775,1767052239890,-560.0,0.00017692,2]
[400047776,1767052239900,-500.0,0.000177,2]
[400047777,1767052239909,-823.0,0.00017765,2]
[400047778,1767052239920,-278.40277077,0.00017842,2]
[400047779,1767052239929,-250.0,0.00018,2]
[400047780,1767052239939,-323.80597779,0.00018082,2]
[400047781,1767052239948,-4500.0,0.00018082,2]
[400047782,1767052239957,-5527.92,0.00018138,2]
[400047783,1767052239967,-660.0,0.0001824,2]
[400047784,1767052239976,-1000.0,0.0001846,2]
[400047785,1767052239985,-241.032427,0.00018493,2]
[400047786,1767052239995,-5000.0,0.0001863,2]
[400047787,1767052240005,-500.0,0.00018732,2]
[400047788,1767052240015,-500.0,0.00018732,2]
[400047789,1767052240024,-481.64675475,0.00018732,2]
[400047790,1767052240033,-6142.14,0.00018764,2]
[400047791,1767052240042,-760.0,0.00018788,2]
[400047792,1767052240052,-303.05151664,0.000189,2]
[400047793,1767052240061,-501.1454694,0.00019,2]
[400047794,1767052240071,-303.05151664,0.00019089,2]
[400047795,1767052240080,-500.0,0.00019178,2]
[400047796,1767052240090,-500.0,0.00019178,2]
[400047797,1767052240100,-500.0,0.00019178,2]
[400047798,1767052240109,-500.0,0.00019178,2]
[400047799,1767052240119,-500.0,0.00019178,2]
[400047800,1767052240128,-500.0,0.00019178,2]
[400047801,1767052240138,-500.0,0.00019178,2]
[400047802,1767052240148,-500.0,0.00019178,2]
[400047803,1767052240157,-500.0,0.00019178,2]
[400047804,1767052240167,-500.0,0.00019178,2]
[400047805,1767052240176,-413.6278121,0.00019178,2]